[Event "AUT-ch Open 2020"]
[Site "Graz"]
[Date "2020.02.15"]
[Round "2.1"]
[White "Farkas, Otto Jr."]
[Black "Santiago, Yago De Moura"]
[Result "0-1"]
[ECO "A42"]
[WhiteElo "1980"]
[BlackElo "2488"]
[Annotator "ChessBase"]
[PlyCount "110"]
[EventDate "2020.02.14"]
[EventType "swiss"]
[EventCountry "AUT"]
[SourceTitle "playchess.com"]
[Source "ChessBase"]
[SourceQuality "1"]
[TimeControl "40/5400+30:1800+30"]

1. e4 {[%emt 0:00:00]} g6 {[%emt 0:00:00]} 2. d4 {[%emt 0:00:03]} Bg7 {[%emt 0:00:00]} 3. c4 {[%emt 0:00:12]} d6 {[%emt 0:00:10]} 4. Nc3 {[%emt 0:00:13]} e5 {[%emt 0:02:45]} 5. d5 {[%emt 0:00:26]} f5 {[%emt 0:00:31]} 6. exf5 {[%emt 0:02:43]} Bxf5 {[%emt 0:01:14]} 7. Bd3 {[%emt 0:00:28]} Nf6 {[%emt 0:02:38]} 8. Bg5 {[%emt 0:02:23]} O-O {[%emt 0:02:40]} 9. Nge2 {[%emt 0:02:51]} Qe8 {[%emt 0:09:23]} 10. O-O {[%emt 0:02:55]} Nfd7 {[%emt 0:00:56]} 11. Ng3 {[%emt 0:04:06]} Nc5 {[%emt 0:00:25]} 12. Be2 {[%emt 0:01:15]} a5 {[%emt 0:01:05]} 13. Be3 {[%emt 0:01:00]} Nba6 {[%emt 0:01:59]} 14. Qd2 {[%emt 0:04:30]} a4 {[%emt 0:03:19]} 15. f3 {[%emt 0:00:30]} b6 {[%emt 0:07:36]} 16. Nge4 {[%emt 0:02:04]} Nxe4 {[%emt 0:00:46]} 17. fxe4 {[%emt 0:01:08]} Bd7 {[%emt 0:00:16]} 18. Rxf8+ {[%emt 0:00:04]} Bxf8 {[%emt 0:00:21]} 19. Rf1 {[%emt 0:00:15]} Nc5 {[%emt 0:00:44]} 20. Qc2 {[%emt 0:02:56]} Be7 {[%emt 0:05:30]} 21. Qc1 {[%emt 0:11:44]} Qd8 {[%emt 0:04:44]} 22. Bd1 {[%emt 0:04:46]} Bf6 {[%emt 0:04:48]} 23. Bc2 {[%emt 0:01:15]} Qe7 {[%emt 0:01:13]} 24. Qd1 {[%emt 0:10:31]} Bg5 {[%emt 0:00:46]} 25. Bxc5 {[%emt 0:09:46]} bxc5 {[%emt 0:00:35]} 26. Bxa4 {[%emt 0:00:11]} Be3+ {[%emt 0:03:07]} 27. Kh1 {[%emt 0:00:13]} Bxa4 {[%emt 0:00:12]} 28. Nxa4 {[%emt 0:00:20]} Qh4 {[%emt 0:01:30]} 29. Nc3 {[%emt 0:10:17]} Bf4 {[%emt 0:00:40]} 30. g3 {[%emt 0:03:04]} Bxg3 {[%emt 0:00:09]} 31. Qe2 {[%emt 0:00:26]} Bf4 {[%emt 0:05:21]} 32. b3 {[%emt 0:01:56]} Rf8 {[%emt 0:08:02]} 33. Nb5 {[%emt 0:03:29]} Rf7 {[%emt 0:00:36]} 34. Qf2 {[%emt 0:03:40]} Qh3 {[%emt 0:01:13]} 35. Qg2 {[%emt 0:00:23]} Qh5 {[%emt 0:02:03]} 36. h3 {[%emt 0:00:49]} Qh4 {[%emt 0:02:43]} 37. Qg4 {[%emt 0:00:39]} Qd8 {[%emt 0:00:07]} 38. a4 {[%emt 0:00:28]} Qa8 {[%emt 0:00:33]} 39. Qe6 {[%emt 0:03:32]} Qa5 {[%emt 0:02:36]} 40. Qg4 {[%emt 0:00:39]} Qd2 {[%emt 0:04:47]} 41. Qg2 {[%emt 0:30:51]} Qd3 {[%emt 0:30:08]} 42. Qf3 {[%emt 0:00:42]} Qc2 {[%emt 0:05:14]} 43. Rf2 {[%emt 0:01:04]} Qb1+ {[%emt 0:00:07]} 44. Rf1 {[%emt 0:00:27]} Qb2 {[%emt 0:00:05]} 45. Rf2 {[%emt 0:00:30]} Qc1+ {[%emt 0:00:05]} 46. Rf1 {[%emt 0:00:13]} Qd2 {[%emt 0:00:06]} 47. Qg2 {[%emt 0:00:19]} Qa5 {[%emt 0:02:01]} 48. Qg4 {[%emt 0:00:40]} Kg7 {[%emt 0:01:50]} 49. Qf3 {[%emt 0:00:42]} Qa8 {[%emt 0:07:57]} 50. Qg4 {[%emt 0:01:11]} Qf8 {[%emt 0:07:12]} 51. Qe6 {[%emt 0:01:03]} Qd8 {[%emt 0:02:11]} 52. Qg4 {[%emt 0:01:40]} Qf8 {[%emt 0:00:00]} 53. Qe6 {[%emt 0:00:00]} h5 {[%emt 0:00:00]} 54. Rg1 {[%emt 0:00:00]} Bg3 {[%emt 0:00:00]} 55. Nxc7 {[%emt 0:00:00]} Rf2 {[%emt 0:00:00]} 0-1

[Event "AUT-ch Open 2020"]
[Site "Graz"]
[Date "2020.02.15"]
[Round "2.2"]
[White "Ufimtsev, Egor"]
[Black "Gavrilescu, David"]
[Result "0-1"]
[ECO "E34"]
[WhiteElo "2174"]
[BlackElo "2455"]
[Annotator "ChessBase"]
[PlyCount "144"]
[EventDate "2020.02.14"]
[EventType "swiss"]
[EventCountry "AUT"]
[SourceTitle "playchess.com"]
[Source "ChessBase"]
[SourceQuality "1"]
[TimeControl "40/5400+30:1800+30"]

1. d4 {[%emt 0:00:00]} Nf6 {[%emt 0:00:00]} 2. c4 {[%emt 0:00:00]} e6 {[%emt 0:00:19]} 3. Nc3 {[%emt 0:00:23]} Bb4 {[%emt 0:00:41]} 4. Qc2 {[%emt 0:00:48]} d5 {[%emt 0:00:43]} 5. cxd5 {[%emt 0:00:29]} Qxd5 {[%emt 0:00:16]} 6. Nf3 {[%emt 0:00:21]} Qf5 {[%emt 0:00:44]} 7. Qxf5 {[%emt 0:05:54]} exf5 {[%emt 0:00:19]} 8. a3 {[%emt 0:00:02]} Be7 {[%emt 0:03:23]} 9. Bf4 {[%emt 0:00:23]} c6 {[%emt 0:01:31]} 10. e3 {[%emt 0:02:33]} Be6 {[%emt 0:06:16]} 11. Nd2 {[%emt 0:04:59]} Nbd7 {[%emt 0:06:52]} 12. Nc4 {[%emt 0:00:54]} Nh5 {[%emt 0:11:21]} 13. Bc7 {[%emt 0:18:14]} O-O {[%emt 0:08:40]} 14. Nd6 {[%emt 0:07:48]} b6 {[%emt 0:18:04]} 15. Ba6 {[%emt 0:04:28]} Bd8 {[%emt 0:00:43]} 16. Bxd8 {[%emt 0:08:30]} Raxd8 {[%emt 0:00:13]} 17. Be2 {[%emt 0:06:19]} Nhf6 {[%emt 0:01:58]} 18. O-O {[%emt 0:02:41]} c5 {[%emt 0:03:52]} 19. Rfd1 {[%emt 0:08:57]} cxd4 {[%emt 0:02:09]} 20. Rxd4 {[%emt 0:00:13]} Nc5 {[%emt 0:02:18]} 21. Rad1 {[%emt 0:03:59]} Nb3 {[%emt 0:04:42]} 22. R4d3 {[%emt 0:03:43]} Rd7 {[%emt 0:01:41]} 23. e4 {[%emt 0:04:48]} Nc5 {[%emt 0:06:21]} 24. Rd4 {[%emt 0:00:14]} Bb3 {[%emt 0:05:57]} 25. R1d2 {[%emt 0:00:50]} Rxd6 {[%emt 0:00:27]} 26. Rxd6 {[%emt 0:00:20]} Nfxe4 {[%emt 0:00:09]} 27. Nxe4 {[%emt 0:00:52]} Nxe4 {[%emt 0:00:03]} 28. R2d3 {[%emt 0:04:31]} Nxd6 {[%emt 0:00:45]} 29. Rxb3 {[%emt 0:00:03]} Re8 {[%emt 0:00:29]} 30. Kf1 {[%emt 0:01:55]} g6 {[%emt 0:00:07]} 31. Rd3 {[%emt 0:00:57]} Re6 {[%emt 0:00:32]} 32. Rd4 {[%emt 0:00:39]} Ne4 {[%emt 0:02:06]} 33. f3 {[%emt 0:02:34]} Nf6 {[%emt 0:02:46]} 34. Bb5 {[%emt 0:01:00]} Kg7 {[%emt 0:00:57]} 35. b4 {[%emt 0:01:24]} Re5 {[%emt 0:03:02]} 36. Bc6 {[%emt 0:00:28]} Re3 {[%emt 0:00:49]} 37. a4 {[%emt 0:00:28]} Rc3 {[%emt 0:01:00]} 38. Bb5 {[%emt 0:00:59]} Rc2 {[%emt 0:01:35]} 39. a5 {[%emt 0:00:40]} bxa5 {[%emt 0:00:18]} 40. bxa5 {[%emt 0:00:05]} Rc5 {[%emt 0:00:06]} 41. Rb4 {[%emt 0:30:18]} Nd5 {[%emt 0:30:18]} 42. Rb3 {[%emt 0:00:51]} Nc7 {[%emt 0:00:00]} 43. Bd7 {[%emt 0:00:00]} Rd5 {[%emt 0:00:00]} 44. Bc6 {[%emt 0:00:00]} Rxa5 {[%emt 0:00:00]} 45. Rb7 {[%emt 0:00:00]} Ne6 {[%emt 0:00:00]} 46. Be8 {[%emt 0:00:00]} Ra1+ {[%emt 0:00:00]} 47. Kf2 {[%emt 0:00:00]} Ra2+ {[%emt 0:00:00]} 48. Kf1 {[%emt 0:00:00]} Nf4 {[%emt 0:00:00]} 49. Rxf7+ {[%emt 0:00:00]} Kh6 {[%emt 0:00:00]} 50. g4 {[%emt 0:00:00]} Nd5 {[%emt 0:00:00]} 51. h3 {[%emt 0:00:00]} Kg5 {[%emt 0:00:00]} 52. gxf5 {[%emt 0:00:00]} Ne3+ {[%emt 0:01:42]} 53. Ke1 {[%emt 0:00:00]} gxf5 {[%emt 0:02:20]} 54. Rxh7 {[%emt 0:00:00]} Kf4 {[%emt 0:00:05]} 55. Bc6 {[%emt 0:00:00]} Nc2+ {[%emt 0:01:06]} 56. Kd1 {[%emt 0:00:00]} Nd4 {[%emt 0:00:05]} 57. Bd5 {[%emt 0:00:00]} Ra5 {[%emt 0:00:26]} 58. Ba8 {[%emt 0:00:00]} Nxf3 {[%emt 0:04:06]} 59. Bxf3 {[%emt 0:00:00]} Kxf3 {[%emt 0:00:02]} 60. h4 {[%emt 0:00:00]} f4 {[%emt 0:02:16]} 61. h5 {[%emt 0:00:00]} Rc5 {[%emt 0:02:04]} 62. h6 {[%emt 0:02:06]} Rc6 {[%emt 0:00:04]} 63. Rxa7 {[%emt 0:02:54]} Rxh6 {[%emt 0:00:02]} 64. Re7 {[%emt 0:00:41]} Rh1+ {[%emt 0:00:47]} 65. Kd2 {[%emt 0:00:03]} Kg3 {[%emt 0:00:10]} 66. Rg7+ {[%emt 0:00:07]} Kf2 {[%emt 0:00:05]} 67. Rf7 {[%emt 0:00:08]} f3 {[%emt 0:00:02]} 68. Rg7 {[%emt 0:00:09]} Rh8 {[%emt 0:00:09]} 69. Rd7 {[%emt 0:00:13]} Re8 {[%emt 0:00:05]} 70. Rd6 {[%emt 0:00:03]} Kf1 {[%emt 0:00:06]} 71. Rd7 {[%emt 0:01:01]} f2 {[%emt 0:00:05]} 72. Rd6 {[%emt 0:00:02]} Rg8 {[%emt 0:00:04]} 0-1

[Event "AUT-ch Open 2020"]
[Site "Graz"]
[Date "2020.02.15"]
[Round "2.3"]
[White "Cosman, Andreea-Marioara"]
[Black "Blohberger, Felix"]
[Result "1/2-1/2"]
[ECO "E46"]
[WhiteElo "2165"]
[BlackElo "2448"]
[Annotator "ChessBase"]
[PlyCount "81"]
[EventDate "2020.02.14"]
[EventType "swiss"]
[EventCountry "AUT"]
[SourceTitle "playchess.com"]
[Source "ChessBase"]
[SourceQuality "1"]
[TimeControl "40/5400+30:1800+30"]

1. d4 {[%emt 0:00:00]} Nf6 {[%emt 0:00:00]} 2. c4 {[%emt 0:00:00]} e6 {[%emt 0:00:00]} 3. Nc3 {[%emt 0:00:00]} Bb4 {[%emt 0:00:00]} 4. e3 {[%emt 0:00:00]} O-O {[%emt 0:00:06]} 5. Nge2 {[%emt 0:00:00]} Re8 {[%emt 0:00:06]} 6. a3 {[%emt 0:03:02]} Bf8 {[%emt 0:00:05]} 7. d5 {[%emt 0:00:42]} a5 {[%emt 0:00:33]} 8. g3 {[%emt 0:03:28]} Na6 {[%emt 0:00:14]} 9. Bg2 {[%emt 0:07:20]} Nc5 {[%emt 0:00:10]} 10. b3 {[%emt 0:00:58]} exd5 {[%emt 0:00:23]} 11. cxd5 {[%emt 0:07:56]} b6 {[%emt 0:00:52]} 12. O-O {[%emt 0:02:55]} Ba6 {[%emt 0:00:04]} 13. Ra2 {[%emt 0:05:25]} Nd3 {[%emt 0:05:49]} 14. Rd2 {[%emt 0:05:06]} Nxc1 {[%emt 0:01:44]} 15. Qxc1 {[%emt 0:00:06]} b5 {[%emt 0:02:17]} 16. Rfd1 {[%emt 0:08:41]} Rb8 {[%emt 0:27:10]} 17. Rc2 {[%emt 0:03:28]} b4 {[%emt 0:06:21]} 18. axb4 {[%emt 0:03:05]} Bxb4 {[%emt 0:04:19]} 19. Nd4 {[%emt 0:01:27]} Bb7 {[%emt 0:15:28]} 20. Ncb5 {[%emt 0:10:28]} Nxd5 {[%emt 0:15:39]} 21. Nxc7 {[%emt 0:12:53]} Nxc7 {[%emt 0:00:56]} 22. Rxc7 {[%emt 0:00:08]} Bxg2 {[%emt 0:01:50]} 23. Kxg2 {[%emt 0:00:07]} Rc8 {[%emt 0:07:27]} 24. Rc4 {[%emt 0:05:04]} Rxc4 {[%emt 0:02:24]} 25. Qxc4 {[%emt 0:00:11]} Qa8+ {[%emt 0:01:53]} 26. Kg1 {[%emt 0:07:30]} g6 {[%emt 0:01:03]} 27. Rc1 {[%emt 0:05:49]} Qb7 {[%emt 0:01:18]} 28. Qb5 {[%emt 0:02:12]} Qxb5 {[%emt 0:00:59]} 29. Nxb5 {[%emt 0:00:06]} Rb8 {[%emt 0:00:17]} 30. Nd4 {[%emt 0:00:41]} Be7 {[%emt 0:02:17]} 31. Rc7 {[%emt 0:02:37]} Bf6 {[%emt 0:00:08]} 32. Ra7 {[%emt 0:00:21]} Bxd4 {[%emt 0:00:15]} 33. exd4 {[%emt 0:00:04]} Rxb3 {[%emt 0:00:06]} 34. Rxa5 {[%emt 0:00:09]} Kf8 {[%emt 0:00:29]} 35. Kf1 {[%emt 0:04:11]} Rb4 {[%emt 0:00:51]} 36. Rd5 {[%emt 0:00:07]} Ke7 {[%emt 0:00:07]} 37. Ke2 {[%emt 0:00:22]} f6 {[%emt 0:03:23]} 38. Ke3 {[%emt 0:00:10]} Rb3+ {[%emt 0:00:30]} 39. Ke2 {[%emt 0:00:16]} Rb4 {[%emt 0:00:50]} 40. Ke3 {[%emt 0:00:06]} Rb3+ {[%emt 0:01:00]} 41. Ke2 {[%emt 0:30:06]} 1/2-1/2

[Event "AUT-ch Open 2020"]
[Site "Graz"]
[Date "2020.02.15"]
[Round "2.5"]
[White "Simonetto, Andrea"]
[Black "Schnider, Gert"]
[Result "1/2-1/2"]
[ECO "E32"]
[WhiteElo "2158"]
[BlackElo "2429"]
[Annotator "ChessBase"]
[PlyCount "85"]
[EventDate "2020.02.14"]
[EventType "swiss"]
[EventCountry "AUT"]
[SourceTitle "playchess.com"]
[Source "ChessBase"]
[SourceQuality "1"]
[TimeControl "40/5400+30:1800+30"]

1. d4 {[%emt 0:00:00]} Nf6 {[%emt 0:00:00]} 2. c4 {[%emt 0:00:00]} e6 {[%emt 0:00:00]} 3. Nc3 {[%emt 0:00:00]} Bb4 {[%emt 0:00:00]} 4. Qc2 {[%emt 0:00:00]} b6 {[%emt 0:00:03]} 5. e4 {[%emt 0:00:10]} c5 {[%emt 0:00:22]} 6. d5 {[%emt 0:00:32]} exd5 {[%emt 0:01:28]} 7. exd5 {[%emt 0:05:20]} O-O {[%emt 0:00:11]} 8. Bd3 {[%emt 0:02:52]} b5 {[%emt 0:05:03]} 9. Bd2 {[%emt 0:16:20]} bxc4 {[%emt 0:01:36]} 10. Bxc4 {[%emt 0:00:07]} d6 {[%emt 0:00:27]} 11. Nge2 {[%emt 0:04:19]} Nbd7 {[%emt 0:00:51]} 12. a3 {[%emt 0:09:37]} Bxc3 {[%emt 0:05:54]} 13. Bxc3 {[%emt 0:02:22]} Nb6 {[%emt 0:00:36]} 14. Qd3 {[%emt 0:06:53]} Nxc4 {[%emt 0:05:22]} 15. Qxc4 {[%emt 0:00:09]} a5 {[%emt 0:00:09]} 16. Bxf6 {[%emt 0:09:28]} Qxf6 {[%emt 0:02:10]} 17. Qc3 {[%emt 0:00:20]} Qg5 {[%emt 0:01:45]} 18. O-O {[%emt 0:03:57]} Ba6 {[%emt 0:10:23]} 19. Rfe1 {[%emt 0:02:07]} Rfb8 {[%emt 0:05:36]} 20. Ng3 {[%emt 0:03:16]} a4 {[%emt 0:03:45]} 21. h4 {[%emt 0:03:34]} Qg6 {[%emt 0:05:57]} 22. h5 {[%emt 0:00:34]} Qg5 {[%emt 0:03:20]} 23. Ne4 {[%emt 0:00:44]} Qxh5 {[%emt 0:12:50]} 24. Nxd6 {[%emt 0:01:17]} Qxd5 {[%emt 0:02:30]} 25. Rad1 {[%emt 0:00:50]} Qh5 {[%emt 0:00:29]} 26. Ne4 {[%emt 0:06:14]} h6 {[%emt 0:09:35]} 27. Qxc5 {[%emt 0:02:30]} Qh4 {[%emt 0:04:46]} 28. g3 {[%emt 0:04:26]} Qh3 {[%emt 0:01:23]} 29. Nd6 {[%emt 0:00:21]} Bb7 {[%emt 0:05:20]} 30. Nxb7 {[%emt 0:00:06]} Rxb7 {[%emt 0:00:01]} 31. Qc6 {[%emt 0:00:56]} Rbb8 {[%emt 0:00:15]} 32. Rd2 {[%emt 0:00:44]} h5 {[%emt 0:04:10]} 33. Rde2 {[%emt 0:00:52]} Qc8 {[%emt 0:02:09]} 34. Qxc8+ {[%emt 0:01:41]} Rxc8 {[%emt 0:00:01]} 35. Re4 {[%emt 0:00:12]} Rcb8 {[%emt 0:01:09]} 36. R1e2 {[%emt 0:00:06]} g6 {[%emt 0:00:15]} 37. Kg2 {[%emt 0:00:09]} Kg7 {[%emt 0:00:06]} 38. Rf4 {[%emt 0:00:31]} Ra6 {[%emt 0:02:24]} 39. Rfe4 {[%emt 0:00:29]} Rb3 {[%emt 0:00:51]} 40. R4e3 {[%emt 0:01:21]} Rb5 {[%emt 0:02:14]} 41. Re5 {[%emt 0:32:17]} Rb3 {[%emt 0:30:08]} 42. R5e3 {[%emt 0:00:05]} Rb5 {[%emt 0:00:03]} 43. Re5 {[%emt 0:00:37]} 1/2-1/2

[Event "AUT-ch Open 2020"]
[Site "Graz"]
[Date "2020.02.15"]
[Round "2.6"]
[White "Buonanno, Raffaele"]
[Black "Freitag, Manfred"]
[Result "0-1"]
[ECO "A65"]
[WhiteElo "2151"]
[BlackElo "2378"]
[Annotator "ChessBase"]
[PlyCount "164"]
[EventDate "2020.02.14"]
[EventType "swiss"]
[EventCountry "AUT"]
[SourceTitle "playchess.com"]
[Source "ChessBase"]
[SourceQuality "1"]
[TimeControl "40/5400+30:1800+30"]

1. d4 {[%emt 0:03:48]} Nf6 {[%emt 0:00:00]} 2. c4 {[%emt 0:00:13]} g6 {[%emt 0:00:00]} 3. Nc3 {[%emt 0:00:13]} Bg7 {[%emt 0:00:34]} 4. e4 {[%emt 0:00:48]} d6 {[%emt 0:00:06]} 5. f3 {[%emt 0:00:47]} O-O {[%emt 0:00:07]} 6. Nge2 {[%emt 0:00:34]} c5 {[%emt 0:00:17]} 7. d5 {[%emt 0:00:38]} e6 {[%emt 0:00:51]} 8. Ng3 {[%emt 0:00:47]} exd5 {[%emt 0:00:07]} 9. cxd5 {[%emt 0:00:09]} h5 {[%emt 0:01:18]} 10. Be2 {[%emt 0:01:02]} a6 {[%emt 1:31:40]} 11. a4 {[%emt 1:26:31]} Nbd7 {[%emt 0:00:30]} 12. Bg5 {[%emt 0:00:30]} Qb6 {[%emt 0:00:30]} 13. Qc1 {[%emt 0:00:30]} Nh7 {[%emt 0:00:30]} 14. Be3 {[%emt 0:00:30]} Qd8 {[%emt 0:00:30]} 15. O-O {[%emt 0:00:30]} h4 {[%emt 0:00:00]} 16. Nh1 {[%emt 0:00:30]} f5 {[%emt 0:01:00]} 17. Nf2 {[%emt 0:00:30]} Ne5 {[%emt 0:00:00]} 18. f4 {[%emt 0:00:00]} Nf7 {[%emt 0:00:00]} 19. Bd3 {[%emt 0:00:00]} Re8 {[%emt 0:00:00]} 20. Qd2 {[%emt 0:00:00]} Bd7 {[%emt 0:00:00]} 21. Rab1 {[%emt 0:00:00]} Rc8 {[%emt 0:00:00]} 22. Rfe1 {[%emt 0:00:00]} Qf6 {[%emt 0:00:00]} 23. a5 {[%emt 0:00:00]} Re7 {[%emt 0:00:00]} 24. Bc4 {[%emt 0:00:00]} Kh8 {[%emt 0:00:00]} 25. Rbd1 {[%emt 0:00:00]} g5 {[%emt 0:00:00]} 26. fxg5 {[%emt 0:00:00]} Nhxg5 {[%emt 0:00:00]} 27. exf5 {[%emt 0:00:00]} Rce8 {[%emt 0:00:00]} 28. Bxg5 {[%emt 0:00:00]} Qxg5 {[%emt 0:06:00]} 29. Rxe7 {[%emt 0:06:00]} Rxe7 30. Qxg5 {[%emt 0:00:30]} Nxg5 {[%emt 0:00:00]} 31. Bd3 {[%emt 0:00:00]} Bd4 {[%emt 0:00:00]} 32. Kf1 {[%emt 0:00:00]} Rf7 {[%emt 0:00:00]} 33. Ke2 {[%emt 0:00:00]} Bxf5 {[%emt 0:00:00]} 34. Bxf5 {[%emt 0:00:00]} Rxf5 {[%emt 0:00:00]} 35. Ng4 {[%emt 0:00:00]} h3 {[%emt 0:00:00]} 36. g3 {[%emt 0:00:00]} Kg7 {[%emt 0:00:00]} 37. Rd3 {[%emt 0:00:00]} Kg6 {[%emt 0:00:00]} 38. Nd1 {[%emt 0:00:00]} Rf7 {[%emt 0:00:00]} 39. Rb3 {[%emt 0:00:00]} Re7+ {[%emt 0:00:00]} 40. Nde3 {[%emt 0:00:00]} Ne4 {[%emt 0:00:00]} 41. Rd3 {[%emt 0:33:47]} Bxb2 {[%emt 0:12:03]} 42. Kf3 {[%emt 0:00:30]} Ng5+ {[%emt 0:01:28]} 43. Ke2 {[%emt 0:00:18]} Bd4 {[%emt 0:00:08]} 44. Kf1 {[%emt 0:01:13]} Ne4 {[%emt 0:04:26]} 45. Nc4 {[%emt 0:00:48]} Kg5 {[%emt 0:01:43]} 46. Nce3 {[%emt 0:00:31]} Nf6 {[%emt 0:09:29]} 47. Nxf6 {[%emt 0:00:10]} Bxe3 {[%emt 0:01:19]} 48. Nd7 {[%emt 0:00:19]} Kf5 {[%emt 0:01:39]} 49. Nb6 {[%emt 0:00:36]} Ke4 {[%emt 0:01:00]} 50. Ke2 {[%emt 0:00:31]} Bg1 {[%emt 0:04:29]} 51. Nc8 {[%emt 0:00:38]} Rd7 {[%emt 0:01:33]} 52. g4 {[%emt 0:00:31]} c4 {[%emt 0:00:00]} 53. Rxh3 {[%emt 0:00:00]} Kxd5 {[%emt 0:00:00]} 54. Rg3 {[%emt 0:00:00]} Bd4 {[%emt 0:00:00]} 55. Nb6+ {[%emt 0:00:00]} Bxb6 {[%emt 0:00:00]} 56. axb6 {[%emt 0:00:00]} Ke4 {[%emt 0:00:00]} 57. g5 {[%emt 0:00:00]} Rh7 {[%emt 0:00:00]} 58. h3 {[%emt 0:00:00]} Kf5 {[%emt 0:00:00]} 59. Ke3 {[%emt 0:00:00]} Kg6 {[%emt 0:00:00]} 60. Kd4 {[%emt 0:00:00]} Rh4+ {[%emt 0:00:00]} 61. Kd5 {[%emt 0:00:00]} c3 {[%emt 0:00:00]} 62. Rxc3 {[%emt 0:00:00]} Rb4 {[%emt 0:00:00]} 63. Kxd6 {[%emt 0:00:00]} Rxb6+ {[%emt 0:00:00]} 64. Kc7 {[%emt 0:00:00]} Rb4 {[%emt 0:08:43]} 65. Rc5 {[%emt 0:00:00]} Rb5 {[%emt 0:00:00]} 66. Rc4 {[%emt 0:00:00]} Kxg5 {[%emt 0:00:00]} 67. Rg4+ {[%emt 0:00:00]} Kh5 {[%emt 0:00:00]} 68. Rg8 {[%emt 0:00:09]} a5 {[%emt 0:00:00]} 69. Rh8+ {[%emt 0:03:28]} Kg6 {[%emt 0:00:00]} 70. h4 {[%emt 0:00:49]} a4 {[%emt 0:00:00]} 71. h5+ {[%emt 0:00:54]} Kg7 {[%emt 0:00:00]} 72. Ra8 {[%emt 0:00:02]} Rb4 {[%emt 0:00:00]} 73. Kd6 {[%emt 0:00:27]} b5 {[%emt 0:00:00]} 74. Kc5 {[%emt 0:01:02]} Rb3 {[%emt 0:00:00]} 75. Kd5 {[%emt 0:00:06]} a3 {[%emt 0:00:00]} 76. Ke5 {[%emt 0:00:18]} b4 {[%emt 0:00:00]} 77. Kf5 {[%emt 0:00:08]} Rf3+ {[%emt 0:00:00]} 78. Kg5 {[%emt 0:00:40]} Rg3+ {[%emt 0:00:00]} 79. Kf5 {[%emt 0:00:43]} Rg1 {[%emt 0:00:00]} 80. Ra7+ {[%emt 0:01:18]} Kh6 {[%emt 0:00:00]} 81. Ra4 {[%emt 0:01:39]} b3 {[%emt 0:00:00]} 82. Rxa3 {[%emt 0:00:07]} b2 {[%emt 0:00:00]} 0-1

[Event "AUT-ch Open 2020"]
[Site "Graz"]
[Date "2020.02.15"]
[Round "2.7"]
[White "Tolonen, Mikko"]
[Black "Huber, Martin Christian"]
[Result "0-1"]
[ECO "B30"]
[WhiteElo "2090"]
[BlackElo "2340"]
[Annotator "ChessBase"]
[PlyCount "116"]
[EventDate "2020.02.14"]
[EventType "swiss"]
[EventCountry "AUT"]
[SourceTitle "playchess.com"]
[Source "ChessBase"]
[SourceQuality "1"]
[TimeControl "40/5400+30:1800+30"]

1. e4 {[%emt 0:00:00]} c5 {[%emt 0:00:00]} 2. Nc3 {[%emt 0:00:00]} Nc6 {[%emt 0:00:09]} 3. Bb5 {[%emt 0:00:09]} Nd4 {[%emt 0:00:10]} 4. Nf3 {[%emt 0:00:12]} e6 {[%emt 0:00:05]} 5. O-O {[%emt 0:02:18]} a6 {[%emt 0:01:15]} 6. Bd3 {[%emt 0:03:19]} Nc6 {[%emt 0:00:51]} 7. Re1 {[%emt 0:01:16]} g5 {[%emt 0:06:57]} 8. Kh1 {[%emt 0:28:25]} Bg7 {[%emt 0:07:43]} 9. b3 {[%emt 0:03:21]} h5 {[%emt 0:07:00]} 10. Bb2 {[%emt 0:04:28]} g4 {[%emt 0:01:31]} 11. Ng1 {[%emt 0:00:22]} Nge7 {[%emt 0:00:19]} 12. Na4 {[%emt 0:10:40]} Bxb2 {[%emt 0:13:39]} 13. Nxb2 {[%emt 0:00:08]} Ng6 {[%emt 0:07:46]} 14. c3 {[%emt 0:05:03]} b5 {[%emt 0:23:59]} 15. Bc2 {[%emt 0:10:26]} Qf6 {[%emt 0:03:02]} 16. Qe2 {[%emt 0:00:41]} d6 {[%emt 0:02:13]} 17. a4 {[%emt 0:01:54]} Rb8 {[%emt 0:01:02]} 18. axb5 {[%emt 0:00:17]} axb5 {[%emt 0:00:06]} 19. Qe3 {[%emt 0:00:30]} h4 {[%emt 0:05:36]} 20. h3 {[%emt 0:07:12]} gxh3 {[%emt 0:01:30]} 21. Nxh3 {[%emt 0:00:32]} e5 {[%emt 0:03:19]} 22. Kh2 {[%emt 0:03:48]} Nf4 {[%emt 0:02:24]} 23. Nd3 {[%emt 0:03:27]} Nxd3 {[%emt 0:07:59]} 24. Bxd3 {[%emt 0:00:17]} Rg8 {[%emt 0:01:04]} 25. Rf1 {[%emt 0:01:12]} Bxh3 {[%emt 0:01:32]} 26. gxh3 {[%emt 0:01:54]} Qf4+ {[%emt 0:00:30]} 27. Kh1 {[%emt 0:04:59]} Ke7 {[%emt 0:00:53]} 28. Rg1 {[%emt 0:00:21]} Qf6 {[%emt 0:00:52]} 29. Be2 {[%emt 0:01:24]} Rxg1+ {[%emt 0:00:24]} 30. Rxg1 {[%emt 0:00:09]} Nd8 {[%emt 0:00:32]} 31. Rg8 {[%emt 0:02:28]} b4 {[%emt 0:00:09]} 32. Bc4 {[%emt 0:00:27]} bxc3 {[%emt 0:00:12]} 33. dxc3 {[%emt 0:00:09]} Ra8 {[%emt 0:00:12]} 34. Bb5 {[%emt 0:02:01]} Qf4 {[%emt 0:00:49]} 35. Qxf4 {[%emt 0:00:23]} exf4 {[%emt 0:00:06]} 36. Kg2 {[%emt 0:00:09]} Ra5 {[%emt 0:01:11]} 37. Re8+ {[%emt 0:03:18]} Kf6 {[%emt 0:00:01]} 38. Rxd8 {[%emt 0:00:32]} Rxb5 {[%emt 0:00:05]} 39. Rxd6+ {[%emt 0:00:23]} Ke5 {[%emt 0:00:53]} 40. Rd5+ {[%emt 0:00:51]} Kxe4 {[%emt 0:00:30]} 41. Rh5 {[%emt 0:09:20]} Rxb3 {[%emt 0:04:48]} 42. Rxc5 {[%emt 0:00:48]} f3+ {[%emt 0:06:27]} 43. Kh2 {[%emt 0:00:40]} Kd3 {[%emt 0:02:20]} 44. Rh5 {[%emt 0:06:27]} Ke2 {[%emt 0:08:23]} 45. Rxh4 {[%emt 0:00:32]} Kxf2 {[%emt 0:00:06]} 46. Rf4 {[%emt 0:00:27]} Rb2 {[%emt 0:07:57]} 47. Rxf7 {[%emt 0:02:00]} Ke3+ {[%emt 0:03:11]} 48. Kg3 {[%emt 0:01:07]} Rg2+ {[%emt 0:00:19]} 49. Kh4 {[%emt 0:00:06]} f2 {[%emt 0:00:20]} 50. Re7+ {[%emt 0:05:05]} Kd3 {[%emt 0:00:07]} 51. Rf7 {[%emt 0:00:31]} Ke2 {[%emt 0:00:13]} 52. Re7+ {[%emt 0:00:38]} Kf1 {[%emt 0:00:09]} 53. c4 {[%emt 0:01:55]} Kg1 {[%emt 0:00:07]} 54. Rf7 {[%emt 0:00:09]} f1=Q {[%emt 0:00:22]} 55. Rxf1+ {[%emt 0:00:07]} Kxf1 {[%emt 0:00:02]} 56. Kh5 {[%emt 0:00:24]} Kf2 {[%emt 0:00:39]} 57. h4 {[%emt 0:01:34]} Kf3 {[%emt 0:00:10]} 58. c5 {[%emt 0:00:57]} Kf4 {[%emt 0:00:06]} 0-1